Cogmind - Beta 15 *** ADVENTURER MODE // 2025.05.10 @ 20:03:38 Player: Jack Result: Destroyed by S-43 Plague with Heavy Machine Gun Performance ------------- Evolutions (9) 4500 Regions Visited (11) 2200 Robots Destroyed (43) 215 Value Destroyed (729) 729 Prototype IDs (2) 40 Alien Tech Used (0) 0 Bonus (0) 0 TOTAL SCORE: 7684 Bonus ------- None Cogmind --------- Core Integrity 0/1600 Matter 278/300 Energy 98/100 System Corruption 12% Temperature Cool (0) Movement Core (50) Location -1/Access Parts ------- > --- POWER (1) -------- (None) > --- PROPULSION (6) --- (None) > --- UTILITY (16) ----- Hacking Suite > --- WEAPON (2) ------- (None) > --- INVENTORY (5) ---- Advanced Signal Interpreter Matter Neutralizer Enhanced Hardcell Cannon Chainsword Peak State ------------ > --- POWER ------------ Micro Nuclear Core > --- PROPULSION ------- Xenon Bombardment Thruster Xenon Bombardment Thruster Cooled VTOL Module Field Propulsion Drive > --- UTILITY ---------- Structural Scanner Advanced Sensor Array Advanced Signal Interpreter Hacking Suite Hacking Suite Hacking Suite Hacking Suite Hacking Suite Hacking Suite Hacking Suite Hacking Suite Hacking Suite > --- WEAPON ----------- Improved Datajack Chainsword > --- INVENTORY -------- VTOL Module Advanced Sensor Array Advanced Sensor Array Advanced Signal Interpreter Chainsword [Rating: 70] Favorites ----------- Power Micro Nuclear Core Engine Light Ion Engine Power Core Micro Nuclear Core Propulsion Xenon Bombardment Thruster Flight Unit Xenon Bombardment Thruster Utility Hacking Suite Device Structural Scanner Processor Advanced Signal Interpreter Hackware Hacking Suite Weapon Chainsword Energy Gun Medium Laser Ballistic Gun Minigun Ballistic Cannon Enhanced Hardcell Cannon Slashing Weapon Chainsword Special Melee Weapon Improved Datajack Build | -11 -10 -10 -9 -8 -7 -6 -5 -4 -3 -2 -1 ------- Run | Yrd Mat Min Mat Mat Fac Fac Fac Fac Res Res Acc Slots Evolved 18 | . . . 2 2 2 2 2 2 2 2 2 Power . | . . . . . . . . . . . . Propulsion 4 | . . . 1 1 . . . . . . 2 Utility 14 | . . . 1 1 2 2 2 2 2 2 . Weapon . | . . . . . . . . . . . . Parts Attached 61 | 2 . . 3 12 22 9 4 4 1 . 4 Power 4 | . . . . 2 2 . . . . . . Engine 2 | . . . . 2 . . . . . . . Core 2 | . . . . . 2 . . . . . . Reactor . | . . . . . . . . . . . . Propulsion 20 | . . . 3 7 7 . 1 . 1 . 1 Treads . | . . . . . . . . . . . . Leg . | . . . . . . . . . . . . Wheel . | . . . . . . . . . . . . Hover . | . . . . . . . . . . . . Flight 20 | . . . 3 7 7 . 1 . 1 . 1 Utility 28 | . . . . . 10 9 3 4 . . 2 Device 9 | . . . . . 6 . . 1 . . 2 Storage . | . . . . . . . . . . . . Processor 3 | . . . . . 1 1 . 1 . . . Hackware 16 | . . . . . 3 8 3 2 . . . Protection . | . . . . . . . . . . . . Artifact . | . . . . . . . . . . . . Weapon 9 | 2 . . . 3 3 . . . . . 1 Energy Gun 1 | 1 . . . . . . . . . . . Energy Cannon . | . . . . . . . . . . . . Ballistic Gun 4 | 1 . . . 3 . . . . . . . Ballistic Cannon 1 | . . . . . . . . . . . 1 Launcher . | . . . . . . . . . . . . Special Weapon . | . . . . . . . . . . . . Impact Weapon . | . . . . . . . . . . . . Slashing Weapon 2 | . . . . . 2 . . . . . . Piercing Weapon . | . . . . . . . . . . . . Special Melee Weapon 1 | . . . . . 1 . . . . . . Unidentified Prototypes 1 | . . . . . 1 . . . . . . Parts Lost 40 | . . . 1 9 7 1 1 2 . 3 16 Power 2 | . . . . 1 . . . . . . 1 Propulsion 17 | . . . . 7 4 . . 1 . 1 4 Utility 17 | . . . . . 2 1 1 1 . 1 11 Weapon 4 | . . . 1 1 1 . . . . 1 . Highest Loss Streak 11 | . . . 1 7 6 1 1 2 . 2 11 To Critical Strikes . | . . . . . . . . . . . . Average Backups 4 | 1 2 2 2 2 4 4 4 5 4 4 4 Power . | . 1 1 1 . . . . . . . . Propulsion . | . . . . 1 1 1 1 1 . . . Utility 1 | . . . . . . 2 2 3 3 3 2 Weapon 1 | . 1 1 1 . 1 1 1 1 1 1 2 Tool/Special . | . . . . . . . . . . . . Unused Backups 7 | . . . . . 1 1 . 2 . . 3 Power . | . . . . . . . . . . . . Propulsion 1 | . . . . . 1 . . . . . . Utility 4 | . . . . . . 1 . 2 . . 1 Weapon 2 | . . . . . . . . . . . 2 Tool/Special . | . . . . . . . . . . . . Average Slot Usage (%) 69 | . 28 28 33 40 68 90 96 94 85 69 42 Core 3 | . . . . . 4 6 5 5 4 4 2 Flight 20 | . . . 17 23 28 26 23 21 19 15 7 Device 7 | . . . . . 8 13 10 10 9 8 6 Processor 3 | . . . . . 4 6 5 5 4 4 3 Hackware 17 | . . . . . 5 23 37 41 38 30 20 Energy Gun 1 | . 14 14 11 1 . . . . . . . Ballistic Gun 2 | . 14 14 4 13 2 . . . . . . Slashing Weapon 4 | . . . . . 6 6 5 5 4 4 2 Special Melee Weapon 3 | . . . . . 3 6 5 5 4 . . Peak Build Rating 70 | 2 2 2 4 11 47 55 61 70 64 64 70 Average Rating 37 | 1 2 2 3 6 26 49 57 66 64 58 44 On Entrance 30 | . 2 2 2 4 9 47 53 61 63 64 56 Naked Turns . | . . . . . . . . . . . . Heaviest Build 14 | 4 4 4 4 9 13 12 12 12 12 12 14 Greatest Support 33 | 3 3 3 12 16 23 23 24 24 22 22 33 Greatest Overweight (x) 4 | 1 1 1 1 2 3 . . . . . 4 Average Overweight (x) . | . 1 1 . . . . . . . . . Largest Inventory Capacity 5 | 5 5 5 5 5 5 5 5 5 5 5 5 Average Capacity 5 | 5 5 5 5 5 5 5 5 5 5 5 5 Most Carried 5 | 2 2 2 3 4 5 5 5 5 4 4 5 Average Carried 4 | 1 2 2 2 2 4 4 4 4 4 4 4 Final Capacity 5 | 5 5 5 5 5 5 5 5 5 5 5 5 Final Carried 5 | 2 2 2 3 3 5 5 5 5 4 4 4 Class Distribution -------------------- 35% | Wizard-Scout 18% | Hacker-Scout 17% | Mutant 11% | Scavenger-Sprinter 7% | Sprinter 4% | Hacker-Sprinter 3% | Hacker-Mutant Dominant Class ---------------- Mutant | -10/Materials Mutant | -10/Mines Mutant | -9/Materials Mutant | -8/Materials Scavenger-Sprinter | -7/Factory Hacker-Scout | -6/Factory Wizard-Scout | -5/Factory Wizard-Scout | -4/Factory Wizard-Scout | -3/Research Wizard-Scout | -2/Research Wizard-Scout | -1/Access Resources | -11 -10 -10 -9 -8 -7 -6 -5 -4 -3 -2 -1 ----------- Run | Yrd Mat Min Mat Mat Fac Fac Fac Fac Res Res Acc Matter Collected 892 | 209 . 35 52 134 199 84 86 80 . . 13 Remotely . | . . . . . . . . . . . . Salvage Created 1027 | . . 95 150 211 224 84 86 80 . 48 49 Parts 94 | . . 6 19 19 27 7 8 5 . 1 2 Haulers Intercepted . | . . . . . . . . . . . . Recyclers Shooed . | . . . . . . . . . . . . Parts Field Recycled . | . . . . . . . . . . . . Retrieved Matter . | . . . . . . . . . . . . Parts Self-Destructed . | . . . . . . . . . . . . Prevented . | . . . . . . . . . . . . Kills | -11 -10 -10 -9 -8 -7 -6 -5 -4 -3 -2 -1 ------- Run | Yrd Mat Min Mat Mat Fac Fac Fac Fac Res Res Acc Combat Hostiles Destroyed 19 | . . 3 4 9 3 . . . . . . Melee 3 | . . . . . 3 . . . . . . Guns 16 | . . 3 4 9 . . . . . . . Classes Destroyed 7 | . . 2 2 1 1 1 . . . . . Worker 3 | . . 2 1 . . . . . . . . Builder 8 | . . . 2 . 5 . 1 . . . . Tunneler 1 | . . . . . . 1 . . . . . Operator 4 | . . . . . 1 . 1 2 . . . Watcher 8 | . . . 1 . 1 2 1 1 . 1 1 Swarmer 17 | . . 3 4 7 3 . . . . . . Grunt 2 | . . . . 2 . . . . . . . Best Kill Streak 7 | . . 3 7 5 2 1 1 1 . 1 1 Combat Bots Only 5 | . . 3 4 5 2 . . . . . . Max Kills in Single Turn 2 | . . 1 2 2 1 1 1 1 . 1 1 Gunslinging 1 | . . . . 1 . . . . . . . Exploded . | . . . . . . . . . . . . Melee 1 | . . . . . 1 . . . . . . Uniques/NPCs Destroyed . | . . . . . . . . . . . . Combat | -11 -10 -10 -9 -8 -7 -6 -5 -4 -3 -2 -1 -------- Run | Yrd Mat Min Mat Mat Fac Fac Fac Fac Res Res Acc Hostile Shots Fired 543 | . 7 10 34 128 142 9 21 8 2 20 162 Missed 246 | . 1 5 17 52 81 5 7 3 2 13 60 Hits 297 | . 6 5 17 76 61 4 14 5 . 7 102 Projectile 297 | . 6 5 17 76 61 4 14 5 . 7 102 Critical Strikes 6 | . . . . 1 1 . . . . 1 3 Part Disruptions 1 | . . . . . . . . . . 1 . Damage Taken 3976 | . 53 24 155 587 488 51 170 86 . 125 2237 Core 2170 | . 32 5 14 148 218 15 65 20 . 39 1614 Absorbed by Shields 27 | . . . . . 27 . . . . . . Ignored by Resistances 1091 | . 15 10 45 185 160 13 47 24 . 34 558 Regen/Repaired (Parts) 47 | . . . . . . . 19 . . 28 . Core Remaining (%) 90 | 100 . 85 96 73 68 98 93 98 100 97 . Volleys Fired 44 | . . 8 10 22 . . . . . . 4 Largest 2 | . . 2 2 2 . . . . . . 1 Hottest 70 | . . 70 70 70 . . . . . . 58 Shots Fired 77 | . . 16 19 38 . . . . . . 4 Gun 73 | . . 16 19 38 . . . . . . . Cannon 4 | . . . . . . . . . . . 4 Launcher . | . . . . . . . . . . . . Special . | . . . . . . . . . . . . Kinetic 58 | . . 8 9 37 . . . . . . 4 Thermal 19 | . . 8 10 1 . . . . . . . Explosive . | . . . . . . . . . . . . Electromagnetic . | . . . . . . . . . . . . Robot Hit Streak 8 | . . 6 8 6 . . . . . . 1 Robot Miss Streak 3 | . . 3 2 3 . . . . . . 1 Penetration Max . | . . . . . . . . . . . . Secondary Targets 3 | . . . 2 1 . . . . . . . Max Gunslinging Chain 1 | . . . 1 1 . . . . . . . Shots Hit Robots 84 | . . 11 8 24 13 8 5 10 . 2 3 Core Hits 49 | . . 5 8 12 9 2 2 4 . 2 5 Critical Kills . | . . . . . . . . . . . . Critical Parts Destroyed . | . . . . . . . . . . . . Critical Strikes 5 | . . 1 1 . . . . 2 . 1 . Burn 2 | . . 1 1 . . . . . . . . Sever 3 | . . . . . . . . 2 . 1 . Melee Attacks 163 | . . . . . 68 26 20 25 . 4 20 Impact . | . . . . . . . . . . . . Slashing 159 | . . . . . 66 26 20 23 . 4 20 Piercing . | . . . . . . . . . . . . Sneak Attacks 9 | . . . . . 6 1 2 . . . . Combat Hostiles . | . . . . . . . . . . . . Follow-up Attacks . | . . . . . . . . . . . . Damage Inflicted 2741 | . . 134 131 369 679 361 331 425 . 93 218 Guns 630 | . . 134 131 365 . . . . . . . Cannons 43 | . . . . . . . . . . . 43 Explosions . | . . . . . . . . . . . . Melee 1975 | . . . . . 679 361 331 425 . 93 86 Ramming 93 | . . . . 4 . . . . . . 89 Kinetic 524 | . . 72 44 365 . . . . . . 43 Thermal 149 | . . 62 87 . . . . . . . . Explosive . | . . . . . . . . . . . . Electromagnetic . | . . . . . . . . . . . . Impact . | . . . . . . . . . . . . Slashing 1975 | . . . . . 679 361 331 425 . 93 86 Piercing . | . . . . . . . . . . . . Highest Corruption 12 | . . . . . . 2 . 3 . 2 12 Average Corruption 3 | . . . . . . 2 . 3 . 1 4 Corruption Purged . | . . . . . . . . . . . . Corruption Blocked . | . . . . . . . . . . . . Effects 8 | . . . . . . . . 2 . 1 5 Matter Fused 3 | . . . . . . . . . . 1 2 Heat Flow Errors 1 | . . . . . . . . 1 . . . Energy Discharges 2 | . . . . . . . . . . . 2 Parts Rejected 1 | . . . . . . . . 1 . . . Data Loss (minor) 1 | . . . . . . . . . . . 1 Overload Shots . | . . . . . . . . . . . . Overflow Damage 227 | . . . . . 32 64 63 68 . . . Projectiles . | . . . . . . . . . . . . Explosions . | . . . . . . . . . . . . Melee 227 | . . . . . 32 64 63 68 . . . Knockbacks 2 | . . . . . . . . . . . 2 Impact 1 | . . . . . . . . . . . 1 Kinetic 1 | . . . . . . . . . . . 1 Secondary . | . . . . . . . . . . . . Self-Inflicted Damage 65 | . . . . 2 . . . . . . 63 Shots . | . . . . . . . . . . . . Rammed 15 | . . . . 1 . . . . . . 14 Targets Rammed 15 | . . . . 1 . . . . . . 14 Kicked . | . . . . . . . . . . . . Crushed . | . . . . . . . . . . . . Highest Temperature 215 | . . . 7 14 . . 3 215 . . 6 Average Temperature 44 | . . . 6 4 . . 2 110 . . 6 Received Heat Transfer 582 | . 39 . 51 216 84 9 36 30 . . 117 Siege Activations . | . . . . . . . . . . . . Martial Activations . | . . . . . . . . . . . . Shielding Activations . | . . . . . . . . . . . . Robots Disrupted . | . . . . . . . . . . . . Combat Hostiles . | . . . . . . . . . . . . Robots Corrupted . | . . . . . . . . . . . . Combat Hostiles . | . . . . . . . . . . . . Parts Fried . | . . . . . . . . . . . . Impact Corruptions . | . . . . . . . . . . . . Robots Melted . | . . . . . . . . . . . . Combat Hostiles . | . . . . . . . . . . . . Parts Melted 1 | . . . 1 . . . . . . . . Heat Transferred 592 | . . 259 333 . . . . . . . . Parts Sabotaged . | . . . . . . . . . . . . Parts Stolen . | . . . . . . . . . . . . Parts Stripped . | . . . . . . . . . . . . Power Chain Reactions . | . . . . . . . . . . . . Alert | -11 -10 -10 -9 -8 -7 -6 -5 -4 -3 -2 -1 ------- Run | Yrd Mat Min Mat Mat Fac Fac Fac Fac Res Res Acc Maximum Alert Level 1 | . . . . . 1 . . . . . 1 Low Security (%) 96 | 100 100 100 100 100 94 100 100 100 100 100 81 Level 1 3 | . . . . . 5 . . . . . 18 Level 2 . | . . . . . . . . . . . . Level 3 . | . . . . . . . . . . . . Level 4 . | . . . . . . . . . . . . Level 5 . | . . . . . . . . . . . . High Security . | . . . . . . . . . . . . Max Security . | . . . . . . . . . . . . Peak Influence 239 | . . 75 95 191 217 46 181 81 50 27 239 Initial 72 | . . . 4 27 62 44 . 72 . 24 3 Average 57 | . . 29 51 65 104 14 51 24 2 9 92 Influence Increases 2497 | . . 95 157 276 703 162 325 124 60 48 547 Destroy 0b10 Robot/C 380 | . . 60 80 180 60 . . . . . . Destroy 0b10 Robot/NC 115 | . . 10 20 . 35 15 10 15 . 5 5 Destroy Leader 66 | . . 10 12 20 12 4 2 2 . 2 2 Successful Hack 26 | . . . . . 18 . . . . 8 . Disable Machine 54 | . . . . . 18 9 . 27 . . . Destroy Structure 161 | . . . . 1 50 14 28 20 . 3 45 Partial Spotted 285 | . . . 15 . 150 15 45 30 . . 30 Lose Combat Pursuer 1410 | . . 15 30 75 360 105 240 30 60 30 465 Influence Decreases 2268 | . . 80 97 190 759 266 153 296 11 90 326 Entered New Map 353 | . . . 11 48 99 61 1 101 1 26 5 Time Decay 1526 | . . 80 76 60 590 195 142 175 10 37 161 Lost Part 389 | . . . 10 82 70 10 10 20 . 27 160 Squads Dispatched 31 | . . . 1 1 9 8 3 6 . . 3 Investigation 15 | . . . 1 . 5 4 1 3 . . 1 Extermination 9 | . . . . . 4 1 1 1 . . 2 Reinforcement 7 | . . . . 1 . 3 1 2 . . . Assault . | . . . . . . . . . . . . Garrison . | . . . . . . . . . . . . Intercept . | . . . . . . . . . . . . Searches Triggered . | . . . . . . . . . . . . Construction Impeded . | . . . . . . . . . . . . Haulers Reinforced . | . . . . . . . . . . . . Active Scanning Responses . | . . . . . . . . . . . . Cargo Convoy Interrupts . | . . . . . . . . . . . . Stealth | -11 -10 -10 -9 -8 -7 -6 -5 -4 -3 -2 -1 --------- Run | Yrd Mat Min Mat Mat Fac Fac Fac Fac Res Res Acc Distress Signals 11 | . 1 . 2 1 1 1 1 . . 1 3 Communications Jammed . | . . . . . . . . . . . . Distress Signals . | . . . . . . . . . . . . Times Spotted 180 | . 6 4 12 26 29 13 22 9 5 12 42 Peak Tracking Total 13 | . 6 3 7 9 7 5 12 3 7 9 13 Tactical Retreats 40 | . . 1 2 3 11 4 7 1 1 1 9 Traps | -11 -10 -10 -9 -8 -7 -6 -5 -4 -3 -2 -1 ------- Run | Yrd Mat Min Mat Mat Fac Fac Fac Fac Res Res Acc Traps Triggered 6 | . . . 1 . 3 1 . 1 . . . Indirectly . | . . . . . . . . . . . . Trap Hack Attempts . | . . . . . . . . . . . . Triggered . | . . . . . . . . . . . . Disarmed . | . . . . . . . . . . . . Reprogrammed . | . . . . . . . . . . . . Reused . | . . . . . . . . . . . . Traps Extracted . | . . . . . . . . . . . . Installed . | . . . . . . . . . . . . Triggered . | . . . . . . . . . . . . Machines | -11 -10 -10 -9 -8 -7 -6 -5 -4 -3 -2 -1 ---------- Run | Yrd Mat Min Mat Mat Fac Fac Fac Fac Res Res Acc Machines Disabled 6 | . . . . . 2 1 . 3 . . . Max in Single Turn 1 | . . . . . 1 1 . 1 . . . Machines Repaired . | . . . . . . . . . . . . Machines Dismantled . | . . . . . . . . . . . . Machines Sabotaged . | . . . . . . . . . . . . Overloaded Fab Kills . | . . . . . . . . . . . . Hacking | -11 -10 -10 -9 -8 -7 -6 -5 -4 -3 -2 -1 --------- Run | Yrd Mat Min Mat Mat Fac Fac Fac Fac Res Res Acc Machines Accessed 28 | . . . . 1 6 6 6 6 . 2 1 Terminals 13 | . . . . 1 2 2 2 4 . 1 1 Fabricators 12 | . . . . . 4 3 3 2 . . . Repair Stations 2 | . . . . . . . 1 . . 1 . Recycling Units . | . . . . . . . . . . . . Scanalyzers 1 | . . . . . . 1 . . . . . Garrison Access . | . . . . . . . . . . . . Total Hacks 67 | . . . . 1 12 26 9 13 . 3 3 Successful 58 | . . . . 1 10 22 8 13 . 3 1 Failed 9 | . . . . . 2 4 1 . . . 2 Catastrophic . | . . . . . . . . . . . . Database Lockouts . | . . . . . . . . . . . . Manual 31 | . . . . 1 6 9 3 7 . 2 3 Terminals 25 | . . . . 1 2 7 3 8 . 1 3 Fabricators 37 | . . . . . 10 18 4 5 . . . Repair Stations 4 | . . . . . . . 2 . . 2 . Recycling Units . | . . . . . . . . . . . . Scanalyzers 1 | . . . . . . 1 . . . . . Garrison Access . | . . . . . . . . . . . . Terminal Hacks 16 | . . . . 1 1 4 1 7 . 1 1 Part Schematic 3 | . . . . 1 1 . . 1 . . . Level Access Points 4 | . . . . . . . 1 1 . 1 1 Terminal Index 1 | . . . . . . . . 1 . . . Fabricator Index 1 | . . . . . . 1 . . . . . Recall Investigation 2 | . . . . . . . . 2 . . . Recall Extermination 1 | . . . . . . 1 . . . . . Recall Reinforcements 4 | . . . . . . 2 . 2 . . . Fabricator Hacks 29 | . . . . . 6 14 4 5 . . . Network Status 3 | . . . . . 1 . 1 1 . . . Load Schematic 15 | . . . . . 4 8 1 2 . . . Build 11 | . . . . . 1 6 2 2 . . . Repair Station Hacks 4 | . . . . . . . 2 . . 2 . Scan Component 2 | . . . . . . . 1 . . 1 . Repair 2 | . . . . . . . 1 . . 1 . Recycling Unit Hacks . | . . . . . . . . . . . . Scanalyzer 1 | . . . . . . 1 . . . . . Insert Component 1 | . . . . . . 1 . . . . . Garrison Access Hacks . | . . . . . . . . . . . . Unauthorized Hacks 8 | . . . . . 3 3 1 1 . . . Terminals 2 | . . . . . . . 1 1 . . . Track 1 | . . . . . . . . 1 . . . Assimilate 1 | . . . . . . . 1 . . . . Fabricators 6 | . . . . . 3 3 . . . . . Prioritize 1 | . . . . . . 1 . . . . . Recompile 5 | . . . . . 3 2 . . . . . Repair Stations . | . . . . . . . . . . . . Recycling Units . | . . . . . . . . . . . . Scanalyzers . | . . . . . . . . . . . . Garrison Access . | . . . . . . . . . . . . Data Cores Recovered . | . . . . . . . . . . . . Used . | . . . . . . . . . . . . Hacking Detections 19 | . . . . . 2 4 5 5 . 2 1 Full Trace Events 8 | . . . . . 1 2 1 3 . . 1 Feedback Events 1 | . . . . . . 1 . . . . . Hackware Fried 1 | . . . . . . 1 . . . . . Feedback Blocked . | . . . . . . . . . . . . Robot Schematics Acquired . | . . . . . . . . . . . . Robots Built . | . . . . . . . . . . . . Authchips . | . . . . . . . . . . . . Time 152 | . . . . . . . 152 . . . . Total Robot Build Rating . | . . . . . . . . . . . . Part Schematics Acquired 3 | . . . . 1 1 . . 1 . . . Parts Built 11 | . . . . . 2 6 1 2 . . . Authchips 5 | . . . . . . 5 . . . . . Time 400 | . . . . . 51 253 24 72 . . . Total Part Build Rating 29 | . . . . . 2 18 3 6 . . . Parts Repaired 2 | . . . . . . . 1 . . 1 . Time 27 | . . . . . . . 13 . . 14 . Parts Recycled . | . . . . . . . . . . . . Recycled Matter . | . . . . . . . . . . . . Retrieved Matter . | . . . . . . . . . . . . Retrieved Components . | . . . . . . . . . . . . Parts Scanalyzed . | . . . . . . . . . . . . Part Schematics Acquired . | . . . . . . . . . . . . Parts Damaged . | . . . . . . . . . . . . Bothacking | -11 -10 -10 -9 -8 -7 -6 -5 -4 -3 -2 -1 ------------ Run | Yrd Mat Min Mat Mat Fac Fac Fac Fac Res Res Acc Used RIF Installer . | . . . . . . . . . . . . Robots Hacked . | . . . . . . . . . . . . Non-combat . | . . . . . . . . . . . . Combat . | . . . . . . . . . . . . Robot Hacks Applied . | . . . . . . . . . . . . Relay Couplers Released . | . . . . . . . . . . . . Fabnet Peak Effective % . | . . . . . . . . . . . . Robots Rewired . | . . . . . . . . . . . . Allies Hacked . | . . . . . . . . . . . . Hacks Repelled . | . . . . . . . . . . . . Allies | -11 -10 -10 -9 -8 -7 -6 -5 -4 -3 -2 -1 -------- Run | Yrd Mat Min Mat Mat Fac Fac Fac Fac Res Res Acc Total Allies 1 | . . . . . . . 1 . . . . Largest Group 1 | . . . . . . . 1 . . . . Highest-Rated Group 26 | . . . . . . . 26 . . . . Highest-Rated Ally 26 | . . . . . . . 26 . . . . Total Orders 1 | . . . . . . . 1 . . . . STAY 1 | . . . . . . . 1 . . . . Ally Attacks . | . . . . . . . . . . . . Total Damage . | . . . . . . . . . . . . Kills . | . . . . . . . . . . . . Allies Corrupted . | . . . . . . . . . . . . Allies Melted . | . . . . . . . . . . . . Intel | -11 -10 -10 -9 -8 -7 -6 -5 -4 -3 -2 -1 ------- Run | Yrd Mat Min Mat Mat Fac Fac Fac Fac Res Res Acc Active Infowar (turns) 3056 | . . . . . 1089 558 435 478 84 130 282 Sensors 2398 | . . . . . 522 558 435 478 84 130 191 Terrain 4 | . . . . . 4 . . . . . . Structural 2778 | . . . . . 824 558 422 478 84 130 282 Robot Analysis Total . | . . . . . . . . . . . . Derelict Logs Recovered 1 | . . 1 . . . . . . . . . Drone Launches . | . . . . . . . . . . . . Drone Recoveries . | . . . . . . . . . . . . Exploration | -11 -10 -10 -9 -8 -7 -6 -5 -4 -3 -2 -1 ------------- Run | Yrd Mat Min Mat Mat Fac Fac Fac Fac Res Res Acc Turns Passed 3961 | 53 72 278 189 150 1182 558 435 478 84 138 344 Spaces Moved 7414 | 59 71 254 351 195 2500 870 742 1088 287 325 672 Core 644 | 59 71 254 52 1 . . . . . . 207 Treads . | . . . . . . . . . . . . Legs . | . . . . . . . . . . . . Wheels . | . . . . . . . . . . . . Hover . | . . . . . . . . . . . . Flight 6770 | . . . 299 194 2500 870 742 1088 287 325 465 Fastest Speed 26 | 50 100 100 34 31 26 29 29 31 29 29 29 Average Speed 35 | 82 100 100 43 37 30 29 29 31 29 30 38 Slowest Speed 280 | 100 100 100 100 200 280 29 31 34 29 34 250 Overloaded Moves 101 | . . . . . 34 . . . . 15 52 Propulsion Burnouts . | . . . . . . . . . . . . Robots Hopped 21 | . . . 2 3 9 2 1 2 . . 2 Potential Cave-ins . | . . . . . . . . . . . . Cave-ins Triggered . | . . . . . . . . . . . . Exploration Rate (%) 24 | 4 27 37 32 22 64 20 21 27 7 15 22 Regions Visited 11 Branch Regions 1 Pre-discovered Areas 1 | . . 1 . . . . . . . . . Known Exits Taken 6 | . . . . . 1 1 1 1 1 1 . Unknown Exits Taken 5 | 1 1 1 1 1 . . . . . . . Scrap Searched . | . . . . . . . . . . . . Spaces Dug 104 | . . . . . 50 14 14 10 . 1 15 Terrain Destroyed 105 | . . . . . 50 14 14 10 . 1 16 Melee 102 | . . . . . 50 14 14 10 . 1 13 Projectile 3 | . . . . . . . . . . . 3 AOE . | . . . . . . . . . . . . Terrain Rammed 4 | . . . . . . . . . . . 4 Walls Destroyed . | . . . . . . . . . . . . Machines Disabled . | . . . . . . . . . . . . Actions | -11 -10 -10 -9 -8 -7 -6 -5 -4 -3 -2 -1 --------- Run | Yrd Mat Min Mat Mat Fac Fac Fac Fac Res Res Acc Total 8412 | 62 72 262 362 232 2807 1131 927 1190 287 357 723 Wait 672 | . 2 1 . 6 183 224 160 67 . 28 1 Move 7363 | 58 70 253 346 188 2483 865 739 1083 286 324 668 Hop 19 | . . . 2 3 7 2 1 2 . . 2 Pick Up 24 | 2 . . 1 . 11 3 1 4 . . 2 Fast Attach 41 | 2 . . 3 8 13 7 3 3 . 1 1 Attach 16 | . . . . 2 6 2 1 . 1 . 4 Detach 3 | . . . . . 1 . . . . . 2 Swap 10 | . . . . 2 5 . 1 2 . . . Drop 18 | . . . . . 10 2 1 4 . . 1 Fire 44 | . . 8 10 22 . . . . . . 4 Melee 163 | . . . . . 68 26 20 25 . 4 20 Ram 19 | . . . . 1 . . . . . . 18 Kick . | . . . . . . . . . . . . Crush . | . . . . . . . . . . . . Escape Stasis 20 | . . . . . 20 . . . . . . Rewire . | . . . . . . . . . . . . Trap . | . . . . . . . . . . . . Miscellaneous . | . . . . . . . . . . . . Route ------- -11/Scrapyard -10/Materials -10/Mines -9/Materials -8/Materials -7/Factory (discovered 6 exits: *Fac x4 / [*Low x2]) -6/Factory -5/Factory (discovered 4 exits: *Fac x4) -4/Factory (discovered 4 exits: *Res x4) -3/Research -2/Research (discovered 3 exits: *Acc x3) -1/Access (discovered 1 exit: Sur) History --------- Turn | Location | Event 5 | -11/Scrapyard | Discovered new exit (range 13) 54 | -11/Scrapyard | Entered Materials 111 | -10/Materials | Discovered new exit (range 16) 126 | -10/Materials | Entered Mines 157 | -10/Mines | Learned location of Zion (-6) 302 | -10/Mines | Build established: Mutant 379 | -10/Mines | A weapon hastily lodged in a ceiling crevice suddenly fell to the ground 391 | -10/Mines | Discovered new exit (range 10) 404 | -10/Mines | Entered Materials 404 | -9/Materials | Evolved 2 slots: Propulsion x1, Utility x1 589 | -9/Materials | Discovered new exit (range 11) 593 | -9/Materials | Entered another Materials area 593 | -8/Materials | Evolved 2 slots: Propulsion x1, Utility x1 697 | -8/Materials | Lost 7 parts (1p5n1w) 742 | -8/Materials | Discovered new exit (range 3) 743 | -8/Materials | Entered Factory 743 | -7/Factory | Evolved 2 slots: Utility x2 988 | -7/Factory | Discovered new exit (range 7) 1057 | -7/Factory | Discovered new exit (range 5) 1063 | -7/Factory | Build established: Scavenger-Sprinter 1172 | -7/Factory | Discovered new exit (range 7) 1191 | -7/Factory | Discovered new exit (range 10) 1250 | -7/Factory | Lost 6 parts (4n1u1w) 1280 | -7/Factory | Discovered new exit (range 8) 1282 | -7/Factory | Identified exit to Factory 1328 | -7/Factory | Discovered exit to Factory (range 16) 1487 | -7/Factory | Build established: Sprinter 1665 | -7/Factory | Fabricated Sensor Array (x2) 1925 | -7/Factory | Entered another Factory area 1925 | -6/Factory | Evolved 2 slots: Utility x2 1982 | -6/Factory | Build established: Hacker-Scout 1991 | -6/Factory | Spotted B-75 Beast 2076 | -6/Factory | Fabricated Hacking Suite (x1) 2114 | -6/Factory | Fabricated Hacking Suite? 2125 | -6/Factory | Fabricated Hacking Suite (x1) 2140 | -6/Factory | Discovered new exit (range 14) 2144 | -6/Factory | Identified exit to Factory 2274 | -6/Factory | Hacking Suite fried by hacking feedback 2354 | -6/Factory | Fabricated Hacking Suite (x1) 2410 | -6/Factory | Fabricated Hacking Suite (x1) 2452 | -6/Factory | Fabricated Hacking Suite (x1) 2483 | -6/Factory | Entered another Factory area 2483 | -5/Factory | Evolved 2 slots: Utility x2 2615 | -5/Factory | Fabricated Hacking Suite? 2713 | -5/Factory | Build established: Wizard-Scout 2851 | -5/Factory | Repaired Structural Scanner 2892 | -5/Factory | Identified exit to Factory 2918 | -5/Factory | Entered another Factory area 2918 | -4/Factory | Evolved 2 slots: Utility x2 3057 | -4/Factory | Fabricated Hacking Suite (x1) 3221 | -4/Factory | Fabricated Hacking Suite (x1) 3270 | -4/Factory | Identified exit to Research 3396 | -4/Factory | Entered Research 3396 | -3/Research | Evolved 2 slots: Utility x2 3404 | -3/Research | Discovered new exit (range 11) 3407 | -3/Research | Identified exit to Research 3480 | -3/Research | Entered another Research area 3480 | -2/Research | Evolved 2 slots: Utility x2 3549 | -2/Research | Repaired Xenon Bombardment Thruster 3612 | -2/Research | Spotted B-90 Cyclops 3614 | -2/Research | Discovered new exit (range 15) 3615 | -2/Research | Identified exit to Access 3618 | -2/Research | Entered Access 3618 | -1/Access | Evolved 2 slots: Propulsion x2 3629 | -1/Access | Identified exit to Surface 3652 | -1/Access | Spotted B-99 Colossus 3878 | -1/Access | Lost 11 parts (1p4n6u) 3887 | -1/Access | Core integrity fell below 50% 3929 | -1/Access | System corruption reached 10% 3948 | -1/Access | Core integrity fell below 20% 3962 | -1/Access | Destroyed by S-43 Plague with Heavy Machine Gun Last Messages --------------- Slammed into Door. Destabilizing: System corrupted (+2). ALERT: Potential suspicious activity detected, Programmers report to Access Zone 1S. Slammed into Door. Destabilizing: System corrupted (+2). Destabilizing: Core damaged (-64). Broken Structural Scanner destroyed. Slammed into K-01 Serf. Penetrated by Slug. Adv. Signal Interpreter destroyed. System corrupted: Energy discharge (-28). Penetrated by Slug. Slug penetrates Anti-Orbital Battery. S-43 Plague knocked back. System corrupted: Matter fused (-7). Slammed into S-43 Plague. Destabilizing: System corrupted (+1). Slammed into S-43 Plague. Penetrated by Slug. Map ----- +----------------------------------------------------+ | ????????????# "" #?????# # #### | | ????????????# "" #?????# #+#### | | ????????????+ """" #?????# # | | ????????????# """" #?????# # | | ????????????# """" #?????# # | | ????????????# """" ##????############## | | ????????????# """" #?????????????????# | | ????????????# "" ##?????????????????# | | ????????????# #??????????????????# | | ????????????# #??????????????????# | | ????????????# #??????????????????# | | ????????????# #??????????????????# | | ???? ########+#########????????????????# | | ??? #????????????????###### | | ??????????###### #?????????????????????? | | ???????????????# #?????????????????????? | | ???????????????# +???????????#?????????? | | ???????????????######## k #?????????? #?????????? | | ??????????????????????#Y #???????? ???????????? | | ??????????????????????# ########s##???????????? | | ??????????????????????# # ss #???????????? | | ??????????????????????# # % = #???????????? | | ??????????????????????# # #???????????? | | ??????????????????????+ p " " #???????????? | | ??????????????????????# ;s " " #???????????? | | ??????????????????????# @s# ""G"" #???????????? | | ??????????????????????# # ????????????? | | ??????????????????????# # #???????????? | | ??????????????????????# ###########???????????? | | ??????????????????????# #?????????????????????? | | ??????????????????????+ w#?????????????????????? | | ??????????????????????# #?????????????????????? | | ??????????????????????# #?????????????????????? | | ??????????????????????# #?????????????????????? | | ??????????????????????# ?????????????????????? | | ??????????????????????# ?????????????????????? | | ??????????????????????# ?????????????????????? | | ??????????????????????# ?????????????????????? | | ??????????????????????####+#?????????????????????? | | ?????????????????????????????????????????????????? | | ?????????????????????????????????????????????????? | | ?????????????????????????????????????????????????? | | ?????????????????????????????????????????????????? | | ?????????????????????????????????????????????????? | | ?????????????????????????????????????????????????? | | ?????????????????????????????????????????????????? | | ?????????????????????????????????????????????????? | | ?????????????????????????????????????????????????? | | ?????????????????????????????????????????????????? | | ?????????????????????????????????????????????????? | +----------------------------------------------------+ Best States ------------- Heat Dissipation 52 Energy Generation 15 Energy Capacity 160 Matter Stores 300 Matter Capacity 300 Sight Range 16 Robot Scan Range 16 Terrain Scan Range 14 Terrain Scan Density 10 Resistance: KI 20 Resistance: TH 20 Resistance: EX 20 Resistance: EM 20 Resistance: I 20 Resistance: S 20 Resistance: P 20 Evasion (%) 64 Offensive Hacking 100 Authchip Count 3 Item Schematics ----------------- Hacking Suite | -8/Materials | Hacked Sensor Array | -7/Factory | Hacked Exp. Hacking Suite | -4/Factory | Hacked Robot Schematics ------------------ None Fabricated ------------ Sensor Array | x2 | -7/Factory Hacking Suite | x1 | -6/Factory | Authchip Hacking Suite | x1 | -6/Factory | Authchip Hacking Suite | x1 | -6/Factory | Authchip Hacking Suite | x1 | -6/Factory | Authchip Hacking Suite | x1 | -6/Factory | Authchip Hacking Suite | x1 | -6/Factory Hacking Suite | x1 | -5/Factory Hacking Suite | x1 | -4/Factory Hacking Suite | x1 | -4/Factory Repaired ---------- Structural Scanner | 5% | -5/Factory Xenon Bombardment Thruster | 6% | -2/Research Alien Tech Used ----------------- None Achievements -------------- None Challenges ------------ None Game ------ Seed MappingShrapnelShell Manual? 0 Play Time 01:01:01 Cumulative 113.7 hours Start 2025.05.10 @ 19:02:30 End 2025.05.10 @ 20:03:38 Sessions 1 Manual Loads 0 Difficulty Adventurer Special Mode None Game No. 129 Rogue 18 Adventurer 100 Explorer 11 Win Type - Total 23 Types 5/0/10/0/3/0/4/1/0/0 Lore% 38 Gallery% 38 Achievement% 62 Wizard Run 0 Options --------- Layout 0 ASCII 0 Keyboard 0 Movement Numpad Keybinds 0 Fullscreen 2 Font 12/Smallcaps Map View 83x54 Zoom Use 0% Tactical HUD 0 Map Filters NONE Filters NONE Steam X RUN: b241da57-f8b3-4642-971a-400f2d254880